[Event "*** SCC Grand Prix: Titled Tuesday Blitz"]
[Site "Chess.com"]
[Date "2020.09.29"]
[Round "6"]
[White "OK97"]
[Black "maximnovik"]
[Result "0-1"]
[WhiteElo "2772"]
[BlackElo "2536"]
[TimeControl "180+1"]
[EndTime "11:06:49 PDT"]
[Termination "maximnovik won on time"]

1. d4 {[%clk 0:03:00.9]} 1... Nf6 {[%clk 0:02:59.4]} 2. c4 {[%clk 0:03:01]} 2...
g6 {[%clk 0:02:59.9]} 3. Nc3 {[%clk 0:03:01.3]} 3... d5 {[%clk 0:03:00.4]} 4.
cxd5 {[%clk 0:03:00.9]} 4... Nxd5 {[%clk 0:03:00.1]} 5. Bd2 {[%clk 0:03:01.5]}
5... Bg7 {[%clk 0:02:58.6]} 6. e4 {[%clk 0:03:01.8]} 6... Nxc3 {[%clk
0:02:58.5]} 7. Bxc3 {[%clk 0:03:02.7]} 7... c5 {[%clk 0:02:58.4]} 8. d5 {[%clk
0:02:58]} 8... Bxc3+ {[%clk 0:02:58.8]} 9. bxc3 {[%clk 0:02:58.9]} 9... e6
{[%clk 0:02:58.5]} 10. Nf3 {[%clk 0:02:46]} 10... exd5 {[%clk 0:02:56.4]} 11.
exd5 {[%clk 0:02:46.6]} 11... Qf6 {[%clk 0:02:56.5]} 12. Bb5+ {[%clk 0:02:32]}
12... Bd7 {[%clk 0:02:55.6]} 13. Bxd7+ {[%clk 0:02:05]} 13... Nxd7 {[%clk
0:02:54.9]} 14. O-O {[%clk 0:02:05]} 14... O-O {[%clk 0:02:52.7]} 15. c4 {[%clk
0:01:57.7]} 15... Rfe8 {[%clk 0:02:48.9]} 16. Qd2 {[%clk 0:01:57.7]} 16... Re4
{[%clk 0:02:44.3]} 17. Qh6 {[%clk 0:01:46.2]} 17... Rxc4 {[%clk 0:02:38.5]} 18.
Rae1 {[%clk 0:01:44.4]} 18... Rd8 {[%clk 0:02:15.9]} 19. Ng5 {[%clk 0:01:28.6]}
19... Qg7 {[%clk 0:02:01.6]} 20. Qh3 {[%clk 0:01:15.1]} 20... Nf6 {[%clk
0:02:01.3]} 21. Re7 {[%clk 0:01:12]} 21... Rxd5 {[%clk 0:01:20.5]} 22. Rxf7
{[%clk 0:00:44.4]} 22... Qxf7 {[%clk 0:01:19.9]} 23. Nxf7 {[%clk 0:00:45.3]}
23... Kxf7 {[%clk 0:01:19.7]} 24. Qc8 {[%clk 0:00:39]} 24... Rd7 {[%clk
0:01:19.7]} 25. h3 {[%clk 0:00:39]} 25... b6 {[%clk 0:01:18.3]} 26. Re1 {[%clk
0:00:37.2]} 26... Rcd4 {[%clk 0:01:18.5]} 27. Kh2 {[%clk 0:00:34.2]} 27... Rd2
{[%clk 0:01:05.9]} 28. Kg1 {[%clk 0:00:12.3]} 28... Rd1 {[%clk 0:01:02.6]} 29.
Rxd1 {[%clk 0:00:12.8]} 29... Rxd1+ {[%clk 0:01:02.6]} 30. Kh2 {[%clk
0:00:13.7]} 30... Rd7 {[%clk 0:01:02.7]} 31. Qc6 {[%clk 0:00:13.7]} 31... Re7
{[%clk 0:00:55.9]} 32. a4 {[%clk 0:00:14.3]} 32... Re6 {[%clk 0:00:45.9]} 33.
Qc7+ {[%clk 0:00:14.1]} 33... Re7 {[%clk 0:00:46.2]} 34. Qc6 {[%clk 0:00:14.5]}
34... Re6 {[%clk 0:00:45.8]} 35. Qc8 {[%clk 0:00:15]} 35... Re7 {[%clk
0:00:44.1]} 36. f3 {[%clk 0:00:14.9]} 36... h5 {[%clk 0:00:39.4]} 37. g4 {[%clk
0:00:14]} 37... hxg4 {[%clk 0:00:37.4]} 38. hxg4 {[%clk 0:00:14]} 38... Ne8
{[%clk 0:00:30.8]} 39. Qc6 {[%clk 0:00:12.7]} 39... Rc7 {[%clk 0:00:29.5]} 40.
Qd5+ {[%clk 0:00:12.5]} 40... Ke7 {[%clk 0:00:29.3]} 41. Kg3 {[%clk 0:00:13.4]}
41... c4 {[%clk 0:00:28.8]} 42. Qe4+ {[%clk 0:00:13]} 42... Kf7 {[%clk
0:00:26.9]} 43. Qd5+ {[%clk 0:00:13]} 43... Ke7 {[%clk 0:00:26.5]} 44. Qe5+
{[%clk 0:00:13.4]} 44... Kf7 {[%clk 0:00:24.5]} 45. Qf4+ {[%clk 0:00:11.4]}
45... Ke7 {[%clk 0:00:24]} 46. Qe4+ {[%clk 0:00:11.7]} 46... Kf7 {[%clk
0:00:24]} 47. Qf4+ {[%clk 0:00:10.7]} 47... Ke7 {[%clk 0:00:23.8]} 48. Qe3+
{[%clk 0:00:11.3]} 48... Kf7 {[%clk 0:00:22.6]} 49. Qc3 {[%clk 0:00:10.4]} 49...
Rc5 {[%clk 0:00:20.3]} 50. f4 {[%clk 0:00:08.4]} 50... Nf6 {[%clk 0:00:18.4]}
51. Kf3 {[%clk 0:00:08.6]} 51... Nd5 {[%clk 0:00:17.8]} 52. Qh8 {[%clk 0:00:08]}
52... c3 {[%clk 0:00:17.6]} 53. Qh7+ {[%clk 0:00:08.6]} 53... Kf8 {[%clk
0:00:16.5]} 54. Qh8+ {[%clk 0:00:08.5]} 54... Ke7 {[%clk 0:00:15.4]} 55. Qg7+
{[%clk 0:00:08.9]} 55... Kd8 {[%clk 0:00:15]} 56. Qf8+ {[%clk 0:00:06.1]} 56...
Kc7 {[%clk 0:00:14.4]} 57. Qf7+ {[%clk 0:00:06.6]} 57... Kc8 {[%clk 0:00:13.9]}
58. Qe8+ {[%clk 0:00:06.4]} 58... Kb7 {[%clk 0:00:14]} 59. Qf7+ {[%clk 0:00:03]}
59... Ka6 {[%clk 0:00:13.4]} 60. Qxg6 {[%clk 0:00:01.4]} 60... c2 {[%clk
0:00:13.4]} 0-1

[Event "*** SCC Grand Prix: Titled Tuesday Blitz"]
[Site "Chess.com"]
[Date "2020.09.29"]
[Round "6"]
[White "Konavets"]
[Black "AlexOstrovskiy"]
[Result "1/2-1/2"]
[WhiteElo "2970"]
[BlackElo "2741"]
[TimeControl "180+1"]
[EndTime "11:06:52 PDT"]
[Termination "Game drawn - insufficient material"]

1. d4 {[%clk 0:02:55.5]} 1... Nf6 {[%clk 0:02:58.7]} 2. c4 {[%clk 0:02:54.7]}
2... e5 {[%clk 0:02:59]} 3. dxe5 {[%clk 0:02:54.1]} 3... Ng4 {[%clk 0:02:59.4]}
4. Bf4 {[%clk 0:02:54.8]} 4... Nc6 {[%clk 0:02:57.8]} 5. Nf3 {[%clk 0:02:54.7]}
5... Bb4+ {[%clk 0:02:58.1]} 6. Nc3 {[%clk 0:02:54.6]} 6... Bxc3+ {[%clk
0:02:58.4]} 7. bxc3 {[%clk 0:02:54.8]} 7... Qe7 {[%clk 0:02:59.3]} 8. Qd5 {[%clk
0:02:55]} 8... f6 {[%clk 0:02:59.8]} 9. exf6 {[%clk 0:02:55.9]} 9... Nxf6 {[%clk
0:03:00.4]} 10. Qd3 {[%clk 0:02:55.9]} 10... d6 {[%clk 0:03:00.3]} 11. g3 {[%clk
0:02:56.5]} 11... O-O {[%clk 0:02:59.5]} 12. Bg2 {[%clk 0:02:56.7]} 12... Re8
{[%clk 0:03:00.1]} 13. Be3 {[%clk 0:02:43.9]} 13... Ng4 {[%clk 0:02:56.4]} 14.
Bg5 {[%clk 0:02:42.6]} 14... Qf7 {[%clk 0:02:46.1]} 15. c5 {[%clk 0:02:32.1]}
15... Nce5 {[%clk 0:02:33.5]} 16. Nxe5 {[%clk 0:01:31.5]} 16... Qxf2+ {[%clk
0:02:29.6]} 17. Kd2 {[%clk 0:01:31.3]} 17... Nxe5 {[%clk 0:02:07.5]} 18. Bd5+
{[%clk 0:01:29.9]} 18... Be6 {[%clk 0:02:06.5]} 19. Bxe6+ {[%clk 0:01:28.1]}
19... Rxe6 {[%clk 0:02:07.4]} 20. Qd5 {[%clk 0:01:28.2]} 20... Re8 {[%clk
0:02:05.1]} 21. Be3 {[%clk 0:01:23.4]} 21... Nc4+ {[%clk 0:01:58.7]} 22. Qxc4
{[%clk 0:01:23.6]} 22... Qxe3+ {[%clk 0:01:59.6]} 23. Kc2 {[%clk 0:01:23]} 23...
Qxe2+ {[%clk 0:01:54.8]} 24. Qxe2 {[%clk 0:01:23.9]} 24... Rxe2+ {[%clk
0:01:55.2]} 25. Kb3 {[%clk 0:01:24.3]} 25... dxc5 {[%clk 0:01:56.1]} 26. Rad1
{[%clk 0:01:24.8]} 26... b5 {[%clk 0:01:29.3]} 27. Rd5 {[%clk 0:01:21.3]} 27...
c4+ {[%clk 0:01:25]} 28. Kb4 {[%clk 0:01:21.3]} 28... c6 {[%clk 0:01:25.2]} 29.
Rd7 {[%clk 0:01:21.3]} 29... Rxa2 {[%clk 0:01:20.8]} 30. Rf1 {[%clk 0:01:20.8]}
30... a5+ {[%clk 0:00:57.7]} 31. Kc5 {[%clk 0:01:20.7]} 31... Rxh2 {[%clk
0:00:58.6]} 32. Ra7 {[%clk 0:01:15.7]} 32... a4 {[%clk 0:00:48.1]} 33. Kxc6
{[%clk 0:01:08.5]} 33... Rh5 {[%clk 0:00:47.8]} 34. Rb1 {[%clk 0:00:53.8]} 34...
Rg5 {[%clk 0:00:43.3]} 35. Rxb5 {[%clk 0:00:48.9]} 35... Rxg3 {[%clk 0:00:43.4]}
36. Rbb7 {[%clk 0:00:39.9]} 36... h6 {[%clk 0:00:34]} 37. Kd5 {[%clk 0:00:36]}
37... Rc8 {[%clk 0:00:25.9]} 38. Kd4 {[%clk 0:00:34.7]} 38... Rg4+ {[%clk
0:00:23.7]} 39. Ke5 {[%clk 0:00:29]} 39... Re8+ {[%clk 0:00:21.8]} 40. Kd5
{[%clk 0:00:28.6]} 40... Rd8+ {[%clk 0:00:20.7]} 41. Kc5 {[%clk 0:00:28.9]}
41... h5 {[%clk 0:00:16]} 42. Rxa4 {[%clk 0:00:22.8]} 42... h4 {[%clk
0:00:15.9]} 43. Ra2 {[%clk 0:00:20.6]} 43... Rd3 {[%clk 0:00:14.7]} 44. Kb4
{[%clk 0:00:13]} 44... h3 {[%clk 0:00:13.9]} 45. Rb8+ {[%clk 0:00:13.3]} 45...
Kh7 {[%clk 0:00:13.3]} 46. Raa8 {[%clk 0:00:13.8]} 46... Kg6 {[%clk 0:00:11.6]}
47. Rh8 {[%clk 0:00:13.9]} 47... Kg5 {[%clk 0:00:09.6]} 48. Ra5+ {[%clk
0:00:07.8]} 48... Kf4 {[%clk 0:00:08.1]} 49. Kxc4 {[%clk 0:00:08.5]} 49... Ke3+
{[%clk 0:00:08.6]} 50. Kb3 {[%clk 0:00:06.8]} 50... Kd2 {[%clk 0:00:07.6]} 51.
Ra2+ {[%clk 0:00:05.3]} 51... Kc1 {[%clk 0:00:05.5]} 52. Rh2 {[%clk 0:00:04.9]}
52... Rgg3 {[%clk 0:00:05.2]} 53. Ra8 {[%clk 0:00:04.9]} 53... Rxc3+ {[%clk
0:00:04.3]} 54. Kb4 {[%clk 0:00:05.5]} 54... Rb3+ {[%clk 0:00:04.8]} 55. Kc4
{[%clk 0:00:05.3]} 55... Rgc3+ {[%clk 0:00:04.8]} 56. Kd4 {[%clk 0:00:05.7]}
56... Rd3+ {[%clk 0:00:05.2]} 57. Ke4 {[%clk 0:00:06.3]} 57... Re3+ {[%clk
0:00:03.3]} 58. Kf4 {[%clk 0:00:06.7]} 58... Rf3+ {[%clk 0:00:03.7]} 59. Kg4
{[%clk 0:00:07.2]} 59... Rg3+ {[%clk 0:00:03.3]} 60. Kh4 {[%clk 0:00:07.6]}
60... g5+ {[%clk 0:00:03.7]} 61. Kh5 {[%clk 0:00:08]} 61... Rg2 {[%clk
0:00:04.2]} 62. Rh1+ {[%clk 0:00:04.8]} 62... Kb2 {[%clk 0:00:03.9]} 63. Rha1
{[%clk 0:00:04.5]} 63... g4 {[%clk 0:00:03.6]} 64. Kh4 {[%clk 0:00:04.2]} 64...
Rc3 {[%clk 0:00:02.8]} 65. R8a2+ {[%clk 0:00:03]} 65... Kb3 {[%clk 0:00:02.9]}
66. Ra3+ {[%clk 0:00:03.9]} 66... Kc4 {[%clk 0:00:02.9]} 67. Ra4+ {[%clk
0:00:04.3]} 67... Kd3 {[%clk 0:00:03.2]} 68. Rxg4 {[%clk 0:00:05]} 68... Rxg4+
{[%clk 0:00:02.8]} 69. Kxg4 {[%clk 0:00:05.9]} 69... h2 {[%clk 0:00:03.7]} 70.
Rh1 {[%clk 0:00:05.4]} 70... Rc2 {[%clk 0:00:04.1]} 71. Kg3 {[%clk 0:00:05.9]}
71... Re2 {[%clk 0:00:04.5]} 72. Rxh2 {[%clk 0:00:06.3]} 72... Rxh2 {[%clk
0:00:05.4]} 73. Kxh2 {[%clk 0:00:07]} 1/2-1/2

[Event "*** SCC Grand Prix: Titled Tuesday Blitz"]
[Site "Chess.com"]
[Date "2020.09.29"]
[Round "6"]
[White "novocane"]
[Black "annacramling"]
[Result "0-1"]
[WhiteElo "2287"]
[BlackElo "2046"]
[TimeControl "180+1"]
[EndTime "11:06:54 PDT"]
[Termination "annacramling won by resignation"]

1. d4 {[%clk 0:03:00.8]} 1... Nf6 {[%clk 0:02:58.9]} 2. c4 {[%clk 0:03:00.6]}
2... e6 {[%clk 0:02:54.8]} 3. Nc3 {[%clk 0:03:00.8]} 3... Bb4 {[%clk 0:02:55.5]}
4. e3 {[%clk 0:03:01.1]} 4... O-O {[%clk 0:02:47.3]} 5. Ne2 {[%clk 0:02:59.6]}
5... b6 {[%clk 0:02:42.6]} 6. a3 {[%clk 0:02:58.8]} 6... Be7 {[%clk 0:02:38.8]}
7. e4 {[%clk 0:02:55.5]} 7... Bb7 {[%clk 0:02:37.5]} 8. Ng3 {[%clk 0:02:47]}
8... d6 {[%clk 0:02:36.8]} 9. Bd3 {[%clk 0:02:42.7]} 9... Nc6 {[%clk 0:02:33.4]}
10. Be3 {[%clk 0:02:38.8]} 10... e5 {[%clk 0:02:30.9]} 11. d5 {[%clk 0:02:36.1]}
11... Nb8 {[%clk 0:02:00.8]} 12. O-O {[%clk 0:02:27.6]} 12... g6 {[%clk
0:01:56.3]} 13. Bh6 {[%clk 0:02:13.3]} 13... Re8 {[%clk 0:01:55.8]} 14. b4
{[%clk 0:02:11.8]} 14... Nbd7 {[%clk 0:01:55.4]} 15. f3 {[%clk 0:02:01.8]} 15...
Nh5 {[%clk 0:01:43.1]} 16. Nxh5 {[%clk 0:01:55.8]} 16... gxh5 {[%clk 0:01:32]}
17. f4 {[%clk 0:01:50.8]} 17... Nf6 {[%clk 0:01:30.8]} 18. fxe5 {[%clk 0:01:40]}
18... dxe5 {[%clk 0:01:26.7]} 19. Rxf6 {[%clk 0:01:21.5]} 19... Bxf6 {[%clk
0:01:26.5]} 20. Qxh5 {[%clk 0:01:21.6]} 20... Bc8 {[%clk 0:01:17.9]} 21. Rf1
{[%clk 0:01:19.5]} 21... Qe7 {[%clk 0:01:07.8]} 22. Kh1 {[%clk 0:00:44.3]} 22...
Bg7 {[%clk 0:00:50.8]} 23. Bxg7 {[%clk 0:00:38.4]} 23... Kxg7 {[%clk 0:00:51.7]}
24. c5 {[%clk 0:00:36.8]} 24... bxc5 {[%clk 0:00:48.7]} 25. bxc5 {[%clk
0:00:36.6]} 25... Rb8 {[%clk 0:00:42.9]} 26. d6 {[%clk 0:00:36.2]} 26... cxd6
{[%clk 0:00:42.1]} 27. Nd5 {[%clk 0:00:36.2]} 27... Qe6 {[%clk 0:00:27.4]} 28.
c6 {[%clk 0:00:21.4]} 28... Rf8 {[%clk 0:00:17.1]} 29. h3 {[%clk 0:00:21.1]}
29... Qg6 {[%clk 0:00:16.1]} 30. Qf3 {[%clk 0:00:19.7]} 30... Be6 {[%clk
0:00:11.9]} 31. c7 {[%clk 0:00:16.3]} 31... Rbc8 {[%clk 0:00:02.9]} 32. Ne7
{[%clk 0:00:16.1]} 32... Qg5 {[%clk 0:00:02.6]} 33. Nxc8 {[%clk 0:00:15.4]}
33... Rxc8 {[%clk 0:00:03]} 34. Qf2 {[%clk 0:00:10.3]} 34... Rxc7 {[%clk
0:00:03.3]} 35. Bb1 {[%clk 0:00:09.6]} 35... Rc1 {[%clk 0:00:03.2]} 36. Kh2
{[%clk 0:00:02.5]} 36... Rxf1 {[%clk 0:00:03]} 37. Qxf1 {[%clk 0:00:03.4]} 37...
Qf4+ {[%clk 0:00:02.4]} 38. Qxf4 {[%clk 0:00:03.8]} 38... exf4 {[%clk
0:00:03.3]} 39. Kg1 {[%clk 0:00:04.7]} 39... Kf6 {[%clk 0:00:03.8]} 40. Kf2
{[%clk 0:00:05.2]} 40... Ke5 {[%clk 0:00:04.5]} 41. Kf3 {[%clk 0:00:04.9]} 41...
Bc4 {[%clk 0:00:04.9]} 42. h4 {[%clk 0:00:03.4]} 42... h6 {[%clk 0:00:04.7]} 43.
Kg4 {[%clk 0:00:02.5]} 43... Bf1 {[%clk 0:00:04.2]} 44. Kf3 {[%clk 0:00:02.9]}
44... Bc4 {[%clk 0:00:03.9]} 45. Kf2 {[%clk 0:00:02.5]} 45... h5 {[%clk
0:00:02.3]} 46. Kf3 {[%clk 0:00:02.9]} 46... f6 {[%clk 0:00:02.5]} 47. Kf2
{[%clk 0:00:03.1]} 47... Bf7 {[%clk 0:00:02.4]} 48. Kf3 {[%clk 0:00:03.8]} 48...
a5 {[%clk 0:00:03.2]} 49. Bc2 {[%clk 0:00:04.1]} 49... Bc4 {[%clk 0:00:03.1]}
50. Bb1 {[%clk 0:00:04.5]} 50... Kd4 {[%clk 0:00:03.6]} 51. Kxf4 {[%clk
0:00:04.7]} 51... Kc3 {[%clk 0:00:03.5]} 52. Kf5 {[%clk 0:00:05.1]} 52... Kb2
{[%clk 0:00:03.9]} 53. Kxf6 {[%clk 0:00:03.4]} 53... Kxb1 {[%clk 0:00:04]} 54.
Ke7 {[%clk 0:00:04.2]} 54... Ka2 {[%clk 0:00:04.1]} 55. Kxd6 {[%clk 0:00:05]}
55... Kxa3 {[%clk 0:00:04.5]} 56. Kc5 {[%clk 0:00:05.9]} 56... Kb3 {[%clk
0:00:05]} 57. e5 {[%clk 0:00:06]} 57... a4 {[%clk 0:00:05.4]} 58. g4 {[%clk
0:00:06.9]} 58... hxg4 {[%clk 0:00:04.6]} 59. h5 {[%clk 0:00:07.2]} 59... g3
{[%clk 0:00:05.1]} 60. e6 {[%clk 0:00:08.1]} 60... Bxe6 {[%clk 0:00:04.1]} 0-1

[Event "*** SCC Grand Prix: Titled Tuesday Blitz"]
[Site "Chess.com"]
[Date "2020.09.29"]
[Round "6"]
[White "Grandmaster2B"]
[Black "IngOscarArdila"]
[Result "1-0"]
[WhiteElo "2390"]
[BlackElo "2157"]
[TimeControl "180+1"]
[EndTime "11:06:54 PDT"]
[Termination "Grandmaster2B won by resignation"]

1. e4 {[%clk 0:03:00.9]} 1... e5 {[%clk 0:02:59.4]} 2. Nf3 {[%clk 0:03:00.6]}
2... Nf6 {[%clk 0:02:56.1]} 3. Nxe5 {[%clk 0:02:58.3]} 3... d6 {[%clk 0:02:56]}
4. Nd3 {[%clk 0:02:58.8]} 4... Nxe4 {[%clk 0:02:55.9]} 5. Qe2 {[%clk 0:02:58.3]}
5... Qe7 {[%clk 0:02:55.8]} 6. Nf4 {[%clk 0:02:58.6]} 6... Nf6 {[%clk
0:02:55.7]} 7. d4 {[%clk 0:02:57.5]} 7... Qxe2+ {[%clk 0:02:55.2]} 8. Bxe2
{[%clk 0:02:58.4]} 8... Be7 {[%clk 0:02:55.6]} 9. O-O {[%clk 0:02:58.2]} 9...
O-O {[%clk 0:02:55.1]} 10. c3 {[%clk 0:02:57.5]} 10... Bf5 {[%clk 0:02:54.9]}
11. Nd2 {[%clk 0:02:52.4]} 11... Nbd7 {[%clk 0:02:52.9]} 12. Nc4 {[%clk
0:02:50.7]} 12... Rfe8 {[%clk 0:02:50.7]} 13. Ne3 {[%clk 0:02:45.7]} 13... Bg6
{[%clk 0:02:47.3]} 14. Nxg6 {[%clk 0:02:40]} 14... hxg6 {[%clk 0:02:47.1]} 15.
Bf3 {[%clk 0:02:38.4]} 15... c6 {[%clk 0:02:46.8]} 16. Re1 {[%clk 0:02:35.5]}
16... d5 {[%clk 0:02:46.4]} 17. Bd2 {[%clk 0:02:35.6]} 17... Bd6 {[%clk
0:02:46]} 18. Nf1 {[%clk 0:02:24.3]} 18... b5 {[%clk 0:02:44.3]} 19. a4 {[%clk
0:02:15.6]} 19... a6 {[%clk 0:02:43.9]} 20. Be3 {[%clk 0:01:47.4]} 20... Kf8
{[%clk 0:02:38.2]} 21. Nd2 {[%clk 0:01:46.2]} 21... Nb6 {[%clk 0:02:25.6]} 22.
a5 {[%clk 0:01:39.4]} 22... Nc4 {[%clk 0:02:22.2]} 23. Nxc4 {[%clk 0:01:24.2]}
23... bxc4 {[%clk 0:02:22.1]} 24. b3 {[%clk 0:01:24.4]} 24... cxb3 {[%clk
0:02:20.4]} 25. Reb1 {[%clk 0:01:24.1]} 25... Rab8 {[%clk 0:02:19.6]} 26. Rb2
{[%clk 0:01:14.6]} 26... Ne4 {[%clk 0:02:16]} 27. Bxe4 {[%clk 0:01:12.8]} 27...
Rxe4 {[%clk 0:02:05.6]} 28. Rab1 {[%clk 0:01:12.2]} 28... Rb5 {[%clk 0:02:05.4]}
29. Rxb3 {[%clk 0:01:02.3]} 29... Rxa5 {[%clk 0:02:05.2]} 30. Rb6 {[%clk
0:00:59.7]} 30... Rb5 {[%clk 0:02:05]} 31. R1xb5 {[%clk 0:00:58.7]} 31... axb5
{[%clk 0:02:05.2]} 32. Rxc6 {[%clk 0:00:58.8]} 32... Re6 {[%clk 0:01:55.6]} 33.
Kf1 {[%clk 0:00:44.6]} 33... f5 {[%clk 0:01:49]} 34. Rb6 {[%clk 0:00:36.6]}
34... Kf7 {[%clk 0:01:32.3]} 35. Rxb5 {[%clk 0:00:35.5]} 35... Bxh2 {[%clk
0:01:32.2]} 36. Rxd5 {[%clk 0:00:29.1]} 36... Bd6 {[%clk 0:01:28.2]} 37. c4
{[%clk 0:00:26.7]} 37... Bb4 {[%clk 0:01:27.9]} 38. Rb5 {[%clk 0:00:22.8]} 38...
Bc3 {[%clk 0:01:27.4]} 39. Rb3 {[%clk 0:00:20.7]} 39... Ba5 {[%clk 0:01:25.5]}
40. d5 {[%clk 0:00:21.2]} 40... Re4 {[%clk 0:01:24.9]} 41. c5 {[%clk 0:00:21.2]}
41... f4 {[%clk 0:01:24.5]} 42. Ke2 {[%clk 0:00:06.1]} 42... fxe3 {[%clk
0:01:23.9]} 43. fxe3 {[%clk 0:00:07]} 43... Rc4 {[%clk 0:01:23.6]} 44. Rb5
{[%clk 0:00:06.4]} 44... Bb4 {[%clk 0:01:22.6]} 45. c6 {[%clk 0:00:05.3]} 45...
Bd6 {[%clk 0:01:22.7]} 46. Rb7+ {[%clk 0:00:05.2]} 46... Kf6 {[%clk 0:01:22.9]}
47. Rd7 {[%clk 0:00:05.5]} 47... Ke5 {[%clk 0:01:22.1]} 48. Rxg7 {[%clk
0:00:05.8]} 48... Rg4 {[%clk 0:01:16.1]} 49. c7 {[%clk 0:00:02.9]} 49... Rc4
{[%clk 0:01:15.1]} 50. Rxg6 {[%clk 0:00:02.1]} 50... Rxc7 {[%clk 0:01:13.4]} 51.
e4 {[%clk 0:00:01.5]} 51... Rc2+ {[%clk 0:01:07.8]} 52. Kd3 {[%clk 0:00:01.5]}
52... Ra2 {[%clk 0:00:58.8]} 53. Re6+ {[%clk 0:00:02.4]} 53... Kf4 {[%clk
0:00:57.9]} 54. Rxd6 {[%clk 0:00:02.9]} 54... Rxg2 {[%clk 0:00:56.2]} 55. Rf6+
{[%clk 0:00:03.4]} 55... Ke5 {[%clk 0:00:56.2]} 56. Rf5+ {[%clk 0:00:04.3]}
56... Kd6 {[%clk 0:00:56.5]} 57. Kd4 {[%clk 0:00:05.2]} 57... Rd2+ {[%clk
0:00:56.1]} 58. Ke3 {[%clk 0:00:05.7]} 58... Ra2 {[%clk 0:00:56.3]} 59. Kf4
{[%clk 0:00:05.5]} 59... Rf2+ {[%clk 0:00:56.2]} 60. Ke3 {[%clk 0:00:05.3]}
60... Ra2 {[%clk 0:00:54.7]} 61. Rf6+ {[%clk 0:00:05.8]} 61... Ke7 {[%clk
0:00:53.8]} 62. e5 {[%clk 0:00:05.7]} 62... Ra4 {[%clk 0:00:53.2]} 63. Rf4
{[%clk 0:00:04.7]} 63... Ra3+ {[%clk 0:00:52.4]} 64. Ke4 {[%clk 0:00:05]} 64...
Ra4+ {[%clk 0:00:52.7]} 65. Kf5 {[%clk 0:00:05.4]} 65... Ra5 {[%clk 0:00:53.2]}
66. d6+ {[%clk 0:00:05.5]} 66... Kd7 {[%clk 0:00:52.8]} 67. Rc4 {[%clk 0:00:06]}
67... Ra1 {[%clk 0:00:51.6]} 68. Rc7+ {[%clk 0:00:06]} 68... Kd8 {[%clk
0:00:52]} 69. e6 {[%clk 0:00:05.4]} 69... Rf1+ {[%clk 0:00:52.2]} 70. Ke5 {[%clk
0:00:05.6]} 70... Re1+ {[%clk 0:00:50.1]} 71. Kd5 {[%clk 0:00:05.8]} 71... Rd1+
{[%clk 0:00:50.3]} 72. Kc6 {[%clk 0:00:05.8]} 72... Rc1+ {[%clk 0:00:49.8]} 73.
Kb6 {[%clk 0:00:06]} 73... Rb1+ {[%clk 0:00:35.9]} 74. Ka5 {[%clk 0:00:05.9]}
74... Ra1+ {[%clk 0:00:35.9]} 75. Kb4 {[%clk 0:00:05.6]} 75... Rb1+ {[%clk
0:00:35.4]} 76. Ka3 {[%clk 0:00:05.5]} 76... Rb6 {[%clk 0:00:34.4]} 77. e7+
{[%clk 0:00:04.9]} 77... Ke8 {[%clk 0:00:33.2]} 78. Rc8+ {[%clk 0:00:05.8]}
78... Kd7 {[%clk 0:00:31.9]} 79. e8=Q+ {[%clk 0:00:06.7]} 79... Kxd6 {[%clk
0:00:32.2]} 80. Qd8+ {[%clk 0:00:06.1]} 1-0